[Event "Early-Titled-Tuesday-Blitz-February-27-2024"]
[Site "Chess.com"]
[Date "2024.02.27"]
[Round "6"]
[White "JJDAREK"]
[Black "Susal_De_Silva"]
[Result "0-1"]
[WhiteElo "2419"]
[BlackElo "2622"]
[TimeControl "180+1"]
[EndTime "9:02:42 PST"]
[Termination "Susal_De_Silva won by checkmate"]

1. d4 {[%clk 0:03:00.9]} 1... Nf6 {[%clk 0:03:00]} 2. Nf3 {[%clk 0:03:00]} 2...
e6 {[%clk 0:02:59.8]} 3. c4 {[%clk 0:02:59.3]} 3... b6 {[%clk 0:02:57.2]} 4. Nc3
{[%clk 0:02:58.9]} 4... Bb7 {[%clk 0:02:57.9]} 5. g3 {[%clk 0:02:58.6]} 5... g6
{[%clk 0:02:58.3]} 6. Bg2 {[%clk 0:02:58.3]} 6... Bg7 {[%clk 0:02:59]} 7. O-O
{[%clk 0:02:58.4]} 7... Ne4 {[%clk 0:02:59.6]} 8. Nxe4 {[%clk 0:02:52.7]} 8...
Bxe4 {[%clk 0:03:00.5]} 9. b3 {[%clk 0:02:47.5]} 9... O-O {[%clk 0:03:00.1]} 10.
Bb2 {[%clk 0:02:47.7]} 10... d6 {[%clk 0:02:58.2]} 11. Qd2 {[%clk 0:02:44.4]}
11... Nd7 {[%clk 0:02:58.1]} 12. Rad1 {[%clk 0:02:36.9]} 12... Qe7 {[%clk
0:02:56.6]} 13. d5 {[%clk 0:02:19.8]} 13... Bxb2 {[%clk 0:02:56.6]} 14. Qxb2
{[%clk 0:02:20.2]} 14... Bxf3 {[%clk 0:02:55.4]} 15. Bxf3 {[%clk 0:01:51.2]}
15... e5 {[%clk 0:02:55.1]} 16. e4 {[%clk 0:01:46.5]} 16... f5 {[%clk
0:02:53.5]} 17. exf5 {[%clk 0:01:42]} 17... gxf5 {[%clk 0:02:52.9]} 18. Bg2
{[%clk 0:01:33.2]} 18... f4 {[%clk 0:02:51.1]} 19. Bh3 {[%clk 0:01:29.3]} 19...
Kh8 {[%clk 0:02:39.3]} 20. b4 {[%clk 0:01:25.2]} 20... Nf6 {[%clk 0:02:31.3]}
21. Be6 {[%clk 0:01:21.2]} 21... Ne4 {[%clk 0:02:28.2]} 22. c5 {[%clk
0:00:17.6]} 22... bxc5 {[%clk 0:02:24.5]} 23. bxc5 {[%clk 0:00:18.5]} 23... Nxc5
{[%clk 0:02:24.2]} 24. gxf4 {[%clk 0:00:16]} 24... Nxe6 {[%clk 0:02:22.8]} 25.
dxe6 {[%clk 0:00:14.6]} 25... Rxf4 {[%clk 0:02:22.6]} 26. Kh1 {[%clk 0:00:06.9]}
26... Raf8 {[%clk 0:02:11.8]} 27. Qb7 {[%clk 0:00:05.9]} 27... Rh4 {[%clk
0:02:05.8]} 28. Rg1 {[%clk 0:00:02.5]} 28... Rxh2+ {[%clk 0:02:04.2]} 29. Kxh2
{[%clk 0:00:02.9]} 29... Qh4+ {[%clk 0:02:04.9]} 30. Kg2 {[%clk 0:00:02.6]}
30... Rxf2# {[%clk 0:02:05.6]} 0-1

[Event "Early-Titled-Tuesday-Blitz-February-27-2024"]
[Site "Chess.com"]
[Date "2024.02.27"]
[Round "6"]
[White "Hovik_Hayrapetyan"]
[Black "wannabe2700"]
[Result "0-1"]
[WhiteElo "2878"]
[BlackElo "2745"]
[TimeControl "180+1"]
[EndTime "9:02:43 PST"]
[Termination "wannabe2700 won by resignation"]

1. d4 {[%clk 0:03:00.9]} 1... f5 {[%clk 0:02:59.9]} 2. Bg5 {[%clk 0:02:55.8]}
2... h6 {[%clk 0:02:59.8]} 3. Bh4 {[%clk 0:02:55.2]} 3... g5 {[%clk 0:03:00.2]}
4. e3 {[%clk 0:02:55.4]} 4... Bg7 {[%clk 0:02:59.6]} 5. Bg3 {[%clk 0:02:54.9]}
5... c5 {[%clk 0:03:00.2]} 6. Nf3 {[%clk 0:02:53.9]} 6... Qb6 {[%clk 0:02:55.3]}
7. Nbd2 {[%clk 0:02:47.6]} 7... cxd4 {[%clk 0:02:46.7]} 8. Bxb8 {[%clk
0:02:11.6]} 8... dxe3 {[%clk 0:02:38.4]} 9. Nc4 {[%clk 0:02:08.4]} 9... exf2+
{[%clk 0:02:37.7]} 10. Ke2 {[%clk 0:02:07.7]} 10... Qc5 {[%clk 0:02:18.2]} 11.
Nd6+ {[%clk 0:02:01.6]} 11... Kf8 {[%clk 0:02:12.5]} 12. Nxc8 {[%clk 0:01:55.5]}
12... Rxb8 {[%clk 0:02:10.5]} 13. c3 {[%clk 0:01:32.8]} 13... Rxc8 {[%clk
0:02:09.8]} 14. Qxd7 {[%clk 0:01:32.6]} 14... Nf6 {[%clk 0:01:57]} 15. Qxb7
{[%clk 0:01:29.1]} 15... Nd5 {[%clk 0:01:22.7]} 16. Nd2 {[%clk 0:00:37.5]} 16...
Qe3+ {[%clk 0:01:08.4]} 17. Kd1 {[%clk 0:00:36.8]} 17... Nxc3+ {[%clk
0:01:08.4]} 18. bxc3 {[%clk 0:00:35.1]} 18... Qe1+ {[%clk 0:01:08.6]} 19. Kc2
{[%clk 0:00:32.9]} 19... Rxc3+ {[%clk 0:01:09.5]} 20. Kb2 {[%clk 0:00:32.6]}
20... Qxd2+ {[%clk 0:01:10.4]} 0-1

[Event "Early-Titled-Tuesday-Blitz-February-27-2024"]
[Site "Chess.com"]
[Date "2024.02.27"]
[Round "6"]
[White "oneshot007"]
[Black "sotochess"]
[Result "1-0"]
[WhiteElo "2471"]
[BlackElo "2623"]
[TimeControl "180+1"]
[EndTime "9:02:44 PST"]
[Termination "oneshot007 won by resignation"]

1. e4 {[%clk 0:03:00.9]} 1... c5 {[%clk 0:02:58.1]} 2. Nf3 {[%clk 0:03:01.2]}
2... e6 {[%clk 0:02:57.2]} 3. d4 {[%clk 0:03:00.6]} 3... cxd4 {[%clk 0:02:57.4]}
4. Nxd4 {[%clk 0:03:01.5]} 4... Nf6 {[%clk 0:02:56.8]} 5. Nc3 {[%clk 0:03:02]}
5... Nc6 {[%clk 0:02:57.1]} 6. Nxc6 {[%clk 0:03:01.5]} 6... bxc6 {[%clk
0:02:57]} 7. e5 {[%clk 0:03:02]} 7... Nd5 {[%clk 0:02:56.7]} 8. Ne4 {[%clk
0:03:02.6]} 8... Qc7 {[%clk 0:02:54.7]} 9. f4 {[%clk 0:03:02.8]} 9... Qb6 {[%clk
0:02:54.5]} 10. a3 {[%clk 0:03:03.3]} 10... f5 {[%clk 0:02:39.9]} 11. exf6
{[%clk 0:02:58.8]} 11... Nxf6 {[%clk 0:02:39.6]} 12. Nxf6+ {[%clk 0:02:57.1]}
12... gxf6 {[%clk 0:02:39.3]} 13. Qh5+ {[%clk 0:02:57.4]} 13... Ke7 {[%clk
0:02:39.1]} 14. Bd3 {[%clk 0:02:45]} 14... Ba6 {[%clk 0:02:37.6]} 15. Bxa6
{[%clk 0:02:39.2]} 15... Qxa6 {[%clk 0:02:36.8]} 16. Bd2 {[%clk 0:02:40.1]}
16... Qc4 {[%clk 0:02:26.2]} 17. O-O-O {[%clk 0:02:31.8]} 17... Rb8 {[%clk
0:02:19]} 18. Bb4+ {[%clk 0:02:23.6]} 18... Rxb4 {[%clk 0:02:15.8]} 19. axb4
{[%clk 0:02:24.5]} 19... Qxf4+ {[%clk 0:02:15.7]} 20. Kb1 {[%clk 0:02:17.3]}
20... Qxb4 {[%clk 0:02:14.7]} 21. Rhe1 {[%clk 0:02:12]} 21... d5 {[%clk
0:01:38.4]} 22. Re3 {[%clk 0:01:55.8]} 22... Kd7 {[%clk 0:01:25]} 23. Rb3 {[%clk
0:01:46.2]} 23... Qd6 {[%clk 0:01:11.1]} 24. Qf7+ {[%clk 0:01:22.5]} 24... Be7
{[%clk 0:00:51]} 25. Rb7+ {[%clk 0:01:22.5]} 25... Kd8 {[%clk 0:00:50.7]} 26.
Rxa7 {[%clk 0:01:23.1]} 26... Rf8 {[%clk 0:00:38.9]} 27. Ra8+ {[%clk 0:01:21.9]}
27... Kd7 {[%clk 0:00:39]} 28. Rxf8 {[%clk 0:01:21.7]} 1-0

[Event "Early-Titled-Tuesday-Blitz-February-27-2024"]
[Site "Chess.com"]
[Date "2024.02.27"]
[Round "6"]
[White "GelmanAlexander"]
[Black "wild3000"]
[Result "1-0"]
[WhiteElo "2719"]
[BlackElo "2441"]
[TimeControl "180+1"]
[EndTime "9:02:51 PST"]
[Termination "GelmanAlexander won by resignation"]

1. d4 {[%clk 0:03:00.9]} 1... g6 {[%clk 0:02:59]} 2. Nc3 {[%clk 0:03:01]} 2...
Bg7 {[%clk 0:02:59.3]} 3. e4 {[%clk 0:03:01.3]} 3... d6 {[%clk 0:02:58.7]} 4. f4
{[%clk 0:03:01.5]} 4... a6 {[%clk 0:02:58.9]} 5. Nf3 {[%clk 0:03:01.8]} 5... b5
{[%clk 0:02:59.2]} 6. Bd3 {[%clk 0:03:02]} 6... Bb7 {[%clk 0:02:58.9]} 7. a4
{[%clk 0:03:02]} 7... b4 {[%clk 0:02:58.8]} 8. Ne2 {[%clk 0:03:02.2]} 8... Nf6
{[%clk 0:02:58.8]} 9. e5 {[%clk 0:03:00.3]} 9... Ng4 {[%clk 0:02:56.8]} 10. O-O
{[%clk 0:02:49.7]} 10... e6 {[%clk 0:02:49.3]} 11. h3 {[%clk 0:02:38]} 11... Nh6
{[%clk 0:02:49.1]} 12. g4 {[%clk 0:02:38.1]} 12... Nd7 {[%clk 0:02:46.2]} 13.
Ng3 {[%clk 0:02:37.6]} 13... c5 {[%clk 0:02:38.5]} 14. c3 {[%clk 0:02:36.4]}
14... Qc7 {[%clk 0:02:23.5]} 15. Be3 {[%clk 0:02:35.6]} 15... c4 {[%clk
0:02:16.5]} 16. Bc2 {[%clk 0:02:30.4]} 16... b3 {[%clk 0:02:08.1]} 17. Bb1
{[%clk 0:02:30.6]} 17... Bxf3 {[%clk 0:01:47.1]} 18. Qxf3 {[%clk 0:02:29.6]}
18... d5 {[%clk 0:01:48]} 19. f5 {[%clk 0:02:22.1]} 19... gxf5 {[%clk
0:01:37.1]} 20. gxf5 {[%clk 0:02:21.3]} 20... O-O-O {[%clk 0:01:35.9]} 21. f6
{[%clk 0:01:57.7]} 21... Bf8 {[%clk 0:01:35.7]} 22. Qh5 {[%clk 0:01:53.5]} 22...
Nxf6 {[%clk 0:01:28.6]} 23. Rxf6 {[%clk 0:01:49.8]} 23... Rg8 {[%clk 0:01:27.1]}
24. Kh2 {[%clk 0:01:43.6]} 24... Bg7 {[%clk 0:01:09.6]} 25. Rf3 {[%clk
0:01:33.8]} 25... Nf5 {[%clk 0:01:05.1]} 26. Nxf5 {[%clk 0:01:29.2]} 26... exf5
{[%clk 0:01:06]} 27. Bxf5+ {[%clk 0:01:29.4]} 27... Kb7 {[%clk 0:01:02.9]} 28.
Bxh7 {[%clk 0:01:26.9]} 28... Rgf8 {[%clk 0:01:00]} 29. Raf1 {[%clk 0:01:26.4]}
29... Rd7 {[%clk 0:00:58.2]} 30. Bf5 {[%clk 0:01:25]} 30... Bxe5+ {[%clk
0:00:55.2]} 31. dxe5 {[%clk 0:01:23.3]} 31... Qxe5+ {[%clk 0:00:56.1]} 32. Bf4
{[%clk 0:01:21.9]} 32... Qe2+ {[%clk 0:00:50.7]} 33. R1f2 {[%clk 0:01:22.4]}
33... Qe1 {[%clk 0:00:50.1]} 34. Bxd7 {[%clk 0:01:21.4]} 34... Rg8 {[%clk
0:00:50.4]} 35. Qxd5+ {[%clk 0:01:21]} 1-0

[Event "Early-Titled-Tuesday-Blitz-February-27-2024"]
[Site "Chess.com"]
[Date "2024.02.27"]
[Round "6"]
[White "kai_nov"]
[Black "Cheer_Down"]
[Result "0-1"]
[WhiteElo "2330"]
[BlackElo "2480"]
[TimeControl "180+1"]
[EndTime "9:02:58 PST"]
[Termination "Cheer_Down won by resignation"]

1. e4 {[%clk 0:03:00.9]} 1... e5 {[%clk 0:02:59.4]} 2. Nf3 {[%clk 0:02:59.4]}
2... Nc6 {[%clk 0:02:59.2]} 3. Nc3 {[%clk 0:02:57]} 3... Nf6 {[%clk 0:02:58.6]}
4. d3 {[%clk 0:02:54.4]} 4... Bc5 {[%clk 0:02:56.7]} 5. Bg5 {[%clk 0:02:52.9]}
5... h6 {[%clk 0:02:54.4]} 6. Bxf6 {[%clk 0:02:51.4]} 6... Qxf6 {[%clk
0:02:53.8]} 7. Nd5 {[%clk 0:02:50.8]} 7... Qd8 {[%clk 0:02:53.3]} 8. c3 {[%clk
0:02:46.8]} 8... d6 {[%clk 0:02:48.8]} 9. Be2 {[%clk 0:02:45.2]} 9... O-O {[%clk
0:02:47.9]} 10. O-O {[%clk 0:02:43.5]} 10... a6 {[%clk 0:02:45.4]} 11. d4 {[%clk
0:02:42.8]} 11... exd4 {[%clk 0:02:42.5]} 12. cxd4 {[%clk 0:02:40.6]} 12... Ba7
{[%clk 0:02:42.3]} 13. Ne3 {[%clk 0:02:32.2]} 13... Re8 {[%clk 0:02:36.6]} 14.
Qd3 {[%clk 0:02:25.8]} 14... Nb4 {[%clk 0:02:06]} 15. Qb3 {[%clk 0:02:13.9]}
15... c5 {[%clk 0:02:00]} 16. dxc5 {[%clk 0:02:11.3]} 16... dxc5 {[%clk
0:01:59.6]} 17. a3 {[%clk 0:02:10.6]} 17... Nc6 {[%clk 0:01:59.5]} 18. Rfd1
{[%clk 0:02:02.4]} 18... Nd4 {[%clk 0:01:55.8]} 19. Nxd4 {[%clk 0:02:00.5]}
19... cxd4 {[%clk 0:01:55.6]} 20. Nd5 {[%clk 0:01:56.6]} 20... Be6 {[%clk
0:01:50.8]} 21. Bf3 {[%clk 0:01:53.2]} 21... Bxd5 {[%clk 0:01:39.7]} 22. exd5
{[%clk 0:01:51.5]} 22... Qd7 {[%clk 0:01:40]} 23. Rac1 {[%clk 0:01:46.5]} 23...
Rac8 {[%clk 0:01:38.3]} 24. h3 {[%clk 0:01:39]} 24... b5 {[%clk 0:01:34]} 25.
Qd3 {[%clk 0:01:36.7]} 25... Qd6 {[%clk 0:01:23.9]} 26. Rxc8 {[%clk 0:01:30.4]}
26... Rxc8 {[%clk 0:01:23.4]} 27. Qf5 {[%clk 0:01:30.9]} 27... Rc7 {[%clk
0:01:13]} 28. Re1 {[%clk 0:01:26.6]} 28... g6 {[%clk 0:01:10.9]} 29. Qe4 {[%clk
0:01:20.8]} 29... Kg7 {[%clk 0:01:08.9]} 30. Qe5+ {[%clk 0:01:06]} 30... Qxe5
{[%clk 0:01:08.3]} 31. Rxe5 {[%clk 0:01:06.5]} 31... Rc1+ {[%clk 0:00:55.6]} 32.
Kh2 {[%clk 0:01:05.4]} 32... Bb8 {[%clk 0:00:55.9]} 0-1

[Event "Early-Titled-Tuesday-Blitz-February-27-2024"]
[Site "Chess.com"]
[Date "2024.02.27"]
[Round "6"]
[White "ketster"]
[Black "LileKoridze"]
[Result "1/2-1/2"]
[WhiteElo "2592"]
[BlackElo "2424"]
[TimeControl "180+1"]
[EndTime "9:03:02 PST"]
[Termination "Game drawn by agreement"]

1. g3 {[%clk 0:02:44.9]} 1... d5 {[%clk 0:02:57.4]} 2. Bg2 {[%clk 0:02:45.8]}
2... Nf6 {[%clk 0:02:55.1]} 3. d3 {[%clk 0:02:44.4]} 3... c5 {[%clk 0:02:53]} 4.
Nf3 {[%clk 0:02:43.8]} 4... Nc6 {[%clk 0:02:53]} 5. Nbd2 {[%clk 0:02:43.8]} 5...
e6 {[%clk 0:02:49.9]} 6. e4 {[%clk 0:02:42.9]} 6... dxe4 {[%clk 0:02:49.8]} 7.
dxe4 {[%clk 0:02:42.7]} 7... Be7 {[%clk 0:02:50.2]} 8. O-O {[%clk 0:02:42.5]}
8... O-O {[%clk 0:02:50.6]} 9. c3 {[%clk 0:02:42.9]} 9... Qc7 {[%clk 0:02:50.1]}
10. Qe2 {[%clk 0:02:39.3]} 10... b6 {[%clk 0:02:50]} 11. Rd1 {[%clk 0:02:35]}
11... Bb7 {[%clk 0:02:49.7]} 12. Nf1 {[%clk 0:02:32.2]} 12... Rfd8 {[%clk
0:02:49.2]} 13. Bf4 {[%clk 0:02:30.4]} 13... e5 {[%clk 0:02:44.9]} 14. Bg5
{[%clk 0:02:26.6]} 14... h6 {[%clk 0:02:42.9]} 15. Bxf6 {[%clk 0:02:26.8]} 15...
Bxf6 {[%clk 0:02:42.7]} 16. Ne3 {[%clk 0:02:27.7]} 16... Ne7 {[%clk 0:02:40.1]}
17. Nd2 {[%clk 0:02:25.9]} 17... Rd7 {[%clk 0:02:36]} 18. Bh3 {[%clk 0:02:21.6]}
18... Rdd8 {[%clk 0:02:36.1]} 19. a4 {[%clk 0:02:17.3]} 19... Nc8 {[%clk
0:02:20.3]} 20. Nf5 {[%clk 0:02:09.6]} 20... Nd6 {[%clk 0:02:18.9]} 21. Nxd6
{[%clk 0:02:08.5]} 21... Rxd6 {[%clk 0:02:18.4]} 22. Nc4 {[%clk 0:02:09.1]}
22... Rxd1+ {[%clk 0:02:18.1]} 23. Rxd1 {[%clk 0:02:10]} 23... Rd8 {[%clk
0:02:18.3]} 24. f3 {[%clk 0:01:52.8]} 24... Ba6 {[%clk 0:02:11.9]} 25. Bf1
{[%clk 0:01:41]} 25... Bxc4 {[%clk 0:01:38]} 26. Rxd8+ {[%clk 0:01:39.3]} 26...
Qxd8 {[%clk 0:01:38.3]} 27. Qxc4 {[%clk 0:01:40.2]} 27... Qd2 {[%clk 0:01:38.2]}
28. Qe2 {[%clk 0:01:38.3]} 28... Bg5 {[%clk 0:01:33.3]} 29. h4 {[%clk
0:01:21.7]} 29... Qxe2 {[%clk 0:01:13.3]} 30. Bxe2 {[%clk 0:01:22.6]} 30... Bc1
{[%clk 0:01:13.7]} 31. b3 {[%clk 0:01:03]} 31... Bd2 {[%clk 0:01:13.7]} 32. c4
{[%clk 0:00:58.4]} 32... Kf8 {[%clk 0:01:13.7]} 33. Kf2 {[%clk 0:00:52]} 33...
f6 {[%clk 0:01:11.3]} 34. Bf1 {[%clk 0:00:51.8]} 34... Ke7 {[%clk 0:01:10.6]}
35. Ke2 {[%clk 0:00:52.1]} 35... Bb4 {[%clk 0:01:10.6]} 36. Bh3 {[%clk 0:00:51]}
1/2-1/2

[Event "Early-Titled-Tuesday-Blitz-February-27-2024"]
[Site "Chess.com"]
[Date "2024.02.27"]
[Round "6"]
[White "Gabrielian_Artur"]
[Black "Msb2"]
[Result "0-1"]
[WhiteElo "2795"]
[BlackElo "3030"]
[TimeControl "180+1"]
[EndTime "9:03:04 PST"]
[Termination "Msb2 won by resignation"]

1. e4 {[%clk 0:03:00.9]} 1... e6 {[%clk 0:02:59.2]} 2. d4 {[%clk 0:03:00.9]}
2... d5 {[%clk 0:02:59.9]} 3. e5 {[%clk 0:03:01.2]} 3... c5 {[%clk 0:03:00.3]}
4. c3 {[%clk 0:03:01.6]} 4... Nc6 {[%clk 0:03:01.1]} 5. Nf3 {[%clk 0:03:01.5]}
5... Nge7 {[%clk 0:03:01.8]} 6. Be2 {[%clk 0:02:58.6]} 6... Nf5 {[%clk
0:03:01.3]} 7. g4 {[%clk 0:02:40]} 7... Nh4 {[%clk 0:02:55.2]} 8. Nxh4 {[%clk
0:02:31]} 8... Qxh4 {[%clk 0:02:56.1]} 9. Be3 {[%clk 0:02:30.5]} 9... cxd4
{[%clk 0:02:56.2]} 10. cxd4 {[%clk 0:02:30.2]} 10... f6 {[%clk 0:02:53.5]} 11.
exf6 {[%clk 0:02:21.9]} 11... Qxf6 {[%clk 0:02:54.4]} 12. Nc3 {[%clk 0:02:21.3]}
12... Bd6 {[%clk 0:02:52.7]} 13. Qd2 {[%clk 0:02:20.4]} 13... O-O {[%clk
0:02:50.5]} 14. g5 {[%clk 0:02:13.8]} 14... Qf7 {[%clk 0:02:37]} 15. h4 {[%clk
0:02:12.7]} 15... e5 {[%clk 0:02:30.4]} 16. dxe5 {[%clk 0:02:05.6]} 16... Bxe5
{[%clk 0:02:31.3]} 17. Nxd5 {[%clk 0:01:35.4]} 17... Be6 {[%clk 0:02:29.4]} 18.
Rd1 {[%clk 0:01:33.2]} 18... Rad8 {[%clk 0:02:28.7]} 19. Bc4 {[%clk 0:01:32.5]}
19... Kh8 {[%clk 0:02:15.4]} 20. f4 {[%clk 0:01:23.6]} 20... Bxf4 {[%clk
0:01:56.5]} 21. Bxf4 {[%clk 0:01:19.9]} 21... Bxd5 {[%clk 0:01:57]} 22. Bxd5
{[%clk 0:01:19]} 22... Rxd5 {[%clk 0:01:57.9]} 23. Qxd5 {[%clk 0:01:05.4]} 23...
Qxf4 {[%clk 0:01:57.6]} 24. Rd2 {[%clk 0:00:53.1]} 24... Nb4 {[%clk 0:01:36.5]}
25. Qg2 {[%clk 0:00:37.1]} 25... Re8+ {[%clk 0:01:27.1]} 26. Kd1 {[%clk
0:00:31.5]} 26... Qf5 {[%clk 0:01:27.6]} 27. Kc1 {[%clk 0:00:12.4]} 27... Nxa2+
{[%clk 0:01:27.4]} 0-1

[Event "Early-Titled-Tuesday-Blitz-February-27-2024"]
[Site "Chess.com"]
[Date "2024.02.27"]
[Round "6"]
[White "GM_Levan_Pantsulaia"]
[Black "Aygehovit1992"]
[Result "0-1"]
[WhiteElo "2926"]
[BlackElo "2689"]
[TimeControl "180+1"]
[EndTime "9:03:04 PST"]
[Termination "Aygehovit1992 won by resignation"]

1. Nf3 {[%clk 0:03:00.9]} 1... Nf6 {[%clk 0:02:54.7]} 2. g3 {[%clk 0:03:00.1]}
2... b5 {[%clk 0:02:51.8]} 3. Bg2 {[%clk 0:02:59.1]} 3... Bb7 {[%clk 0:02:52.3]}
4. O-O {[%clk 0:02:59.4]} 4... e6 {[%clk 0:02:53]} 5. b3 {[%clk 0:02:59.1]} 5...
c5 {[%clk 0:02:52.1]} 6. c4 {[%clk 0:02:59.7]} 6... a6 {[%clk 0:02:46.4]} 7. Nc3
{[%clk 0:02:58.4]} 7... b4 {[%clk 0:02:43.8]} 8. Na4 {[%clk 0:02:57.5]} 8... Nc6
{[%clk 0:02:39]} 9. d4 {[%clk 0:02:54.5]} 9... cxd4 {[%clk 0:02:24.9]} 10. Nxd4
{[%clk 0:02:55.4]} 10... Rc8 {[%clk 0:02:24.6]} 11. Be3 {[%clk 0:02:32.8]} 11...
Qa5 {[%clk 0:02:21.2]} 12. Qd2 {[%clk 0:01:54.5]} 12... Qh5 {[%clk 0:02:11.7]}
13. h3 {[%clk 0:01:49.3]} 13... Be7 {[%clk 0:02:06.5]} 14. Rad1 {[%clk
0:01:33.3]} 14... O-O {[%clk 0:01:50.6]} 15. Nb6 {[%clk 0:01:33.2]} 15... Rcd8
{[%clk 0:01:49.1]} 16. Qb2 {[%clk 0:01:15.5]} 16... Nxd4 {[%clk 0:01:39.1]} 17.
Bxd4 {[%clk 0:01:08.4]} 17... Bxg2 {[%clk 0:01:36.3]} 18. Kxg2 {[%clk
0:01:09.3]} 18... d5 {[%clk 0:01:33.6]} 19. cxd5 {[%clk 0:00:57.7]} 19... Nxd5
{[%clk 0:01:33.7]} 20. Nc4 {[%clk 0:00:57.7]} 20... Qg6 {[%clk 0:01:23.1]} 21.
Ne5 {[%clk 0:00:56.4]} 21... Qe4+ {[%clk 0:01:18.3]} 22. f3 {[%clk 0:00:53.8]}
22... Ne3+ {[%clk 0:01:18]} 23. Bxe3 {[%clk 0:00:53.9]} 23... Qxe3 {[%clk
0:01:18.4]} 24. Nc6 {[%clk 0:00:52.6]} 24... Bf6 {[%clk 0:01:10]} 25. Qc2 {[%clk
0:00:46.8]} 25... Rc8 {[%clk 0:01:03.6]} 26. Rd3 {[%clk 0:00:37.7]} 26... Rxc6
{[%clk 0:00:57.9]} 0-1

[Event "Early-Titled-Tuesday-Blitz-February-27-2024"]
[Site "Chess.com"]
[Date "2024.02.27"]
[Round "6"]
[White "IMRosen"]
[Black "AlainBruxelles"]
[Result "1-0"]
[WhiteElo "2695"]
[BlackElo "2439"]
[TimeControl "180+1"]
[EndTime "9:03:04 PST"]
[Termination "IMRosen won by resignation"]

1. d4 {[%clk 0:03:00.9]} 1... d5 {[%clk 0:02:56.3]} 2. Bf4 {[%clk 0:02:59.5]}
2... e6 {[%clk 0:02:54.8]} 3. e3 {[%clk 0:02:59.7]} 3... Bd6 {[%clk 0:02:55]} 4.
Bxd6 {[%clk 0:03:00.2]} 4... cxd6 {[%clk 0:02:52.7]} 5. Qg4 {[%clk 0:03:00.5]}
5... Kf8 {[%clk 0:02:51.3]} 6. Nc3 {[%clk 0:03:00.3]} 6... Qb6 {[%clk
0:02:45.8]} 7. O-O-O {[%clk 0:02:58.6]} 7... Nf6 {[%clk 0:02:43.3]} 8. Qh4
{[%clk 0:02:58.7]} 8... a6 {[%clk 0:02:40.2]} 9. f3 {[%clk 0:02:53.6]} 9... Qa5
{[%clk 0:02:32.5]} 10. Qg3 {[%clk 0:02:37.4]} 10... Qc7 {[%clk 0:02:27.1]} 11.
e4 {[%clk 0:02:36.3]} 11... dxe4 {[%clk 0:02:22]} 12. fxe4 {[%clk 0:02:35.5]}
12... b5 {[%clk 0:02:18.5]} 13. Bd3 {[%clk 0:02:34.9]} 13... Nc6 {[%clk
0:02:13.8]} 14. Nf3 {[%clk 0:02:34.7]} 14... b4 {[%clk 0:02:06.8]} 15. Ne2
{[%clk 0:02:33.9]} 15... e5 {[%clk 0:01:57.4]} 16. Rhf1 {[%clk 0:02:28.7]} 16...
Bd7 {[%clk 0:01:49.5]} 17. Kb1 {[%clk 0:01:36.1]} 17... a5 {[%clk 0:01:37.6]}
18. Nh4 {[%clk 0:01:36.3]} 18... a4 {[%clk 0:01:33.7]} 19. Nf5 {[%clk
0:01:33.8]} 19... Bxf5 {[%clk 0:01:29.2]} 20. Rxf5 {[%clk 0:01:34]} 20... b3
{[%clk 0:01:27.4]} 21. cxb3 {[%clk 0:01:29]} 21... axb3 {[%clk 0:01:25.1]} 22.
a3 {[%clk 0:01:29.4]} 22... Nb4 {[%clk 0:01:11.9]} 23. axb4 {[%clk 0:01:12.7]}
23... Ke7 {[%clk 0:01:03.5]} 24. Nc3 {[%clk 0:01:03.3]} 24... Qa7 {[%clk
0:00:59.3]} 25. Kc1 {[%clk 0:01:00.4]} 25... exd4 {[%clk 0:00:52]} 26. Rxf6
{[%clk 0:00:51]} 26... dxc3 {[%clk 0:00:48.6]} 27. Qxd6+ {[%clk 0:00:49.4]} 1-0

[Event "Early-Titled-Tuesday-Blitz-February-27-2024"]
[Site "Chess.com"]
[Date "2024.02.27"]
[Round "6"]
[White "annamaja"]
[Black "HATilay"]
[Result "0-1"]
[WhiteElo "2421"]
[BlackElo "2628"]
[TimeControl "180+1"]
[EndTime "9:03:07 PST"]
[Termination "HATilay won by resignation"]

1. e4 {[%clk 0:02:57.3]} 1... c5 {[%clk 0:02:59.9]} 2. Nf3 {[%clk 0:02:57.1]}
2... d6 {[%clk 0:03:00.1]} 3. d4 {[%clk 0:02:57.1]} 3... cxd4 {[%clk 0:03:01]}
4. Nxd4 {[%clk 0:02:57.9]} 4... Nf6 {[%clk 0:03:01.4]} 5. Nc3 {[%clk 0:02:58]}
5... a6 {[%clk 0:03:01.8]} 6. Be3 {[%clk 0:02:56]} 6... e5 {[%clk 0:03:01.8]} 7.
Nb3 {[%clk 0:02:55.6]} 7... Be6 {[%clk 0:03:02.1]} 8. Qd2 {[%clk 0:02:54.4]}
8... Nbd7 {[%clk 0:03:01.9]} 9. O-O-O {[%clk 0:02:51.1]} 9... Be7 {[%clk
0:02:58.6]} 10. Kb1 {[%clk 0:02:50.7]} 10... Rc8 {[%clk 0:02:58]} 11. f4 {[%clk
0:02:48.3]} 11... b5 {[%clk 0:02:56.8]} 12. f5 {[%clk 0:02:47.7]} 12... Bc4
{[%clk 0:02:57.1]} 13. a3 {[%clk 0:02:46.3]} 13... O-O {[%clk 0:02:49.2]} 14. g4
{[%clk 0:02:41.9]} 14... Nxg4 {[%clk 0:02:49.3]} 15. Rg1 {[%clk 0:02:36.5]}
15... Nxe3 {[%clk 0:02:49.4]} 16. Qxe3 {[%clk 0:02:37.4]} 16... Kh8 {[%clk
0:02:49.8]} 17. Qg3 {[%clk 0:02:16.2]} 17... Rg8 {[%clk 0:02:38.2]} 18. Nd2
{[%clk 0:02:11]} 18... Bxf1 {[%clk 0:02:03.1]} 19. Nxf1 {[%clk 0:02:06]} 19...
Rc4 {[%clk 0:01:49.5]} 20. Ne3 {[%clk 0:02:01.6]} 20... Rxc3 {[%clk 0:01:41.8]}
21. bxc3 {[%clk 0:02:01.6]} 21... Nf6 {[%clk 0:01:42.4]} 22. Qf3 {[%clk
0:01:49]} 22... Qa5 {[%clk 0:01:33.7]} 23. Kb2 {[%clk 0:01:45.1]} 23... d5
{[%clk 0:01:33.1]} 24. Nxd5 {[%clk 0:01:35.2]} 24... Qxa3+ {[%clk 0:01:18.6]}
25. Kb1 {[%clk 0:01:32.1]} 25... Nxd5 {[%clk 0:01:19.1]} 26. Rxd5 {[%clk
0:01:28.9]} 26... b4 {[%clk 0:01:19.4]} 27. Qe3 {[%clk 0:00:41.6]} 27... bxc3
{[%clk 0:01:02]} 28. Qb6 {[%clk 0:00:38.9]} 28... Bb4 {[%clk 0:01:01.9]} 0-1